fUSD/lending_fUSD_20260530
["ID","MTS","AMOUNT","RATE_DAILY","PERIOD"]
[423451098,1780126637000,-300.0,0.00039726,120]
[423451099,1780126637000,-300.0,0.00039726,120]
[423451101,1780126637000,-300.0,0.00039726,120]
[423451100,1780126637000,-300.0,0.00039726,120]
[423451102,1780126637000,-300.0,0.00039726,120]
[423451093,1780126637000,-300.0,0.00039726,120]
[423451112,1780126638000,-300.0,0.00039726,120]
[423451110,1780126638000,-300.0,0.00039726,120]
[423451111,1780126638000,-300.0,0.00039726,120]
[423451109,1780126638000,-300.0,0.00039726,120]
[423451107,1780126638000,-300.0,0.00039726,120]
[423451104,1780126638000,-300.0,0.00039726,120]
[423451106,1780126638000,-300.0,0.00039726,120]
[423451105,1780126638000,-300.0,0.00039726,120]
[423451103,1780126638000,-300.0,0.00039726,120]
[423451113,1780126638000,-500.0,0.00039726,90]
[423451108,1780126638000,-300.0,0.00039726,120]
[423451115,1780126638000,-500.0,0.00039726,90]
[423451114,1780126638000,-500.0,0.00039726,90]
[423451118,1780126638000,-500.0,0.00039726,60]
[423451116,1780126638000,-500.0,0.00039726,60]
[423451125,1780126638000,-566.49,0.00039734,120]
[423451126,1780126638000,-1919.84044785,0.00039742,60]
[423451127,1780126638000,-1237.88123057,0.00039742,60]
[423451123,1780126638000,-341.0,0.00039726,30]
[423451124,1780126638000,-297.0,0.00039726,30]
[423451129,1780126638000,-272.87249469,0.00039742,60]
[423451120,1780126638000,-296.0,0.00039726,30]
[423451122,1780126638000,-283.0,0.00039726,30]
[423451119,1780126638000,-296.0,0.00039726,30]
[423451117,1780126638000,-500.0,0.00039726,60]
[423451128,1780126638000,-2389.9419007,0.00039742,60]
[423451121,1780126638000,-275.0,0.00039726,30]
[423451140,1780126639000,-1000.0,0.00039753,30]
[423451139,1780126639000,-1000.0,0.00039753,30]
[423451138,1780126639000,-1000.0,0.00039753,30]
[423451136,1780126639000,-1000.0,0.00039753,30]
[423451137,1780126639000,-1000.0,0.00039753,30]
[423451134,1780126639000,-1000.0,0.00039753,30]
[423451133,1780126639000,-1000.0,0.00039753,30]
[423451132,1780126639000,-1000.0,0.00039753,30]
[423451130,1780126639000,-150.0,0.00039743,120]
[423451142,1780126639000,-1000.0,0.00039753,30]
[423451135,1780126639000,-1000.0,0.00039753,30]
[423451143,1780126639000,-1000.0,0.00039753,30]
[423451131,1780126639000,-1000.0,0.00039753,30]
[423451145,1780126639000,-1000.0,0.00039753,30]
[423451155,1780126639000,-1000.0,0.00039753,30]
[423451154,1780126639000,-1000.0,0.00039753,30]
[423451153,1780126639000,-1000.0,0.00039753,30]
[423451152,1780126639000,-1000.0,0.00039753,30]
[423451150,1780126639000,-1000.0,0.00039753,30]
[423451156,1780126639000,-1000.0,0.00039753,30]
[423451147,1780126639000,-1000.0,0.00039753,30]
[423451151,1780126639000,-1000.0,0.00039753,30]
[423451144,1780126639000,-1000.0,0.00039753,30]
[423451141,1780126639000,-1000.0,0.00039753,30]
[423451149,1780126639000,-1000.0,0.00039753,30]
[423451148,1780126639000,-1000.0,0.00039753,30]
[423451146,1780126639000,-1000.0,0.00039753,30]
[423451169,1780126640000,-2191.23,0.000398,120]
[423451157,1780126640000,-1000.0,0.00039753,30]
[423451158,1780126640000,-455.465868,0.00039753,30]
[423451159,1780126640000,-566.49,0.00039784,120]
[423451162,1780126640000,-1860.59361326,0.000398,120]
[423451161,1780126640000,-2000.0,0.000398,120]
[423451163,1780126640000,-97641.66572736,0.000398,120]
[423451164,1780126640000,-9929.93764,0.000398,30]
[423451167,1780126640000,-3704.42,0.000398,120]
[423451165,1780126640000,-2500.0,0.000398,120]
[423451166,1780126640000,-2500.0,0.000398,120]
[423451160,1780126640000,-2000.0,0.000398,120]
[423451168,1780126640000,-5867.57,0.000398,120]
[423451172,1780126640000,-4803.26,0.000398,120]
[423451170,1780126640000,-763.29,0.000398,120]
[423451181,1780126640000,-2000.0,0.00039825,120]
[423451179,1780126640000,-250.0,0.000398,30]
[423451178,1780126640000,-220.31,0.000398,120]
[423451177,1780126640000,-749.71,0.000398,120]
[423451180,1780126640000,-2000.0,0.00039822,120]
[423451173,1780126640000,-801.59,0.000398,120]
[423451175,1780126640000,-421.21,0.000398,120]
[423451174,1780126640000,-151.89,0.000398,120]
[423451171,1780126640000,-4775.52,0.000398,120]
[423451176,1780126640000,-420.18,0.000398,120]
[423451189,1780126641000,-309.4501166,0.00039849,120]
[423451191,1780126641000,-471.31035208,0.00039849,120]
[423451190,1780126641000,-223.78112818,0.00039849,120]
[423451188,1780126641000,-152.98104685,0.00039849,120]
[423451186,1780126641000,-566.49,0.00039834,120]
[423451192,1780126641000,-150.0,0.00039849,120]
[423451183,1780126641000,-2000.0,0.00039825,120]
[423451184,1780126641000,-2000.0,0.00039825,120]
[423451185,1780126641000,-1088.36,0.00039825,120]
[423451182,1780126641000,-2000.0,0.00039825,120]
[423451187,1780126641000,-530.3,0.00039847,120]
[423451195,1780126641000,-427.10319257,0.00039866,120]
[423451201,1780126641000,-634.97341609,0.00039866,120]
[423451194,1780126641000,-247.33150494,0.00039866,120]
[423451206,1780126641000,-607.92757582,0.00039866,120]
[423451205,1780126641000,-295.04043598,0.00039866,120]
[423451204,1780126641000,-290.87451312,0.00039866,120]
[423451202,1780126641000,-1092.95460553,0.00039866,120]
[423451203,1780126641000,-156.13637221,0.00039866,120]
[423451193,1780126641000,-308.51,0.00039852,30]
[423451200,1780126641000,-374.70761757,0.00039866,120]
[423451199,1780126641000,-995.3934496,0.00039866,120]
[423451197,1780126641000,-283.30245073,0.00039866,120]
[423451196,1780126641000,-158.22133535,0.00039866,120]
[423451198,1780126641000,-587.22812799,0.00039866,120]
[423451207,1780126641000,-322.43857193,0.00039866,120]
[423451215,1780126642000,-4696.8,0.000399,120]
[423451217,1780126642000,-566.54058971,0.00039934,120]
[423451216,1780126642000,-280.04841827,0.000399,120]
[423451213,1780126642000,-3330.82725908,0.000399,120]
[423451214,1780126642000,-1214.05997269,0.000399,120]
[423451210,1780126642000,-1921.46930242,0.00039876,120]
[423451211,1780126642000,-566.49,0.00039884,120]
[423451209,1780126642000,-795.16119766,0.00039866,120]
[423451208,1780126642000,-495.00413779,0.00039866,120]
[423451218,1780126642000,-2000.0,0.00039942,120]
[423451212,1780126642000,-206.79450401,0.00039892,120]
[423451219,1780126642000,-176.19,0.00039951,120]
[423451220,1780126642000,-1858.0,0.0003997,120]
[423451222,1780126642000,-1858.0,0.0003997,120]
[423451233,1780126642000,-1858.0,0.0003998,120]
[423451231,1780126642000,-415.26,0.00039975,120]
[423451229,1780126642000,-197.49,0.00039975,120]
[423451230,1780126642000,-696.08,0.00039975,120]
[423451228,1780126642000,-500.0,0.00039972,30]
[423451232,1780126642000,-3750.59654274,0.0003998,30]
[423451226,1780126642000,-531.0,0.0003997,120]
[423451223,1780126642000,-238.0,0.0003997,120]
[423451224,1780126642000,-2026.0,0.0003997,120]
[423451225,1780126642000,-2026.0,0.0003997,120]
[423451221,1780126642000,-238.0,0.0003997,120]
[423451227,1780126642000,-531.0,0.0003997,120]
[423451243,1780126643000,-2026.0,0.0003998,120]
[423451242,1780126643000,-2026.0,0.0003998,120]
[423451241,1780126643000,-2026.0,0.0003998,120]
[423451240,1780126643000,-1860.13,0.0003998,120]
[423451239,1780126643000,-241.84,0.0003998,120]
[423451236,1780126643000,-238.0,0.0003998,120]
[423451237,1780126643000,-1858.0,0.0003998,120]
[423451235,1780126643000,-1858.0,0.0003998,120]
[423451234,1780126643000,-238.0,0.0003998,120]
[423451244,1780126643000,-2026.62,0.0003998,120]
[423451238,1780126643000,-238.0,0.0003998,120]
[423451245,1780126643000,-531.0,0.0003998,120]
[423451257,1780126643000,-1858.0,0.0003999,120]
[423451247,1780126643000,-531.0,0.0003998,120]
[423451246,1780126643000,-531.0,0.0003998,120]
[423451259,1780126643000,-1858.0,0.0003999,120]
[423451258,1780126643000,-238.0,0.0003999,120]
[423451254,1780126643000,-2000.0,0.0003999,120]
[423451255,1780126643000,-2000.0,0.0003999,120]
[423451256,1780126643000,-2000.0,0.0003999,120]
[423451253,1780126643000,-2000.0,0.0003999,120]
[423451251,1780126643000,-2000.0,0.0003999,120]
[423451250,1780126643000,-3677.21535517,0.0003999,120]
[423451249,1780126643000,-150.0,0.0003999,120]
[423451248,1780126643000,-540.94,0.0003998,120]
[423451252,1780126643000,-5000.0,0.0003999,120]
[423451267,1780126644000,-2026.0,0.0003999,120]
[423451271,1780126644000,-531.0,0.0003999,120]
[423451268,1780126644000,-2026.0,0.0003999,120]
[423451269,1780126644000,-531.0,0.0003999,120]
[423451266,1780126644000,-2026.0,0.0003999,120]
[423451261,1780126644000,-1858.0,0.0003999,120]
[423451264,1780126644000,-1858.0,0.0003999,120]
[423451272,1780126644000,-531.0,0.0003999,120]
[423451262,1780126644000,-238.0,0.0003999,120]
[423451263,1780126644000,-238.0,0.0003999,120]
[423451260,1780126644000,-238.0,0.0003999,120]
[423451265,1780126644000,-2026.0,0.0003999,120]
[423451270,1780126644000,-531.0,0.0003999,120]
[423451282,1780126644000,-1325.39454667,0.0004,30]
[423451274,1780126644000,-2908.99830733,0.00039995,120]
[423451273,1780126644000,-150.0,0.00039993,120]
[423451286,1780126644000,-166.0,0.0004,120]
[423451284,1780126644000,-181.0,0.0004,120]
[423451283,1780126644000,-181.0,0.0004,120]
[423451281,1780126644000,-181.0,0.0004,120]
[423451285,1780126644000,-238.56765337,0.0004,120]
[423451280,1780126644000,-212.06,0.0004,120]
[423451278,1780126644000,-784.07568377,0.0004,120]
[423451276,1780126644000,-50000.0,0.0004,40]
[423451277,1780126644000,-852.3217,0.0004,120]
[423451275,1780126644000,-2444.35967687,0.00039999,30]
[423451279,1780126644000,-616.6019,0.0004,120]
[423451294,1780126645000,-1342.96362039,0.0004,120]
[423451288,1780126645000,-616.6019,0.0004,60]
[423451287,1780126645000,-3000.0,0.0004,60]
[423451290,1780126645000,-1745.757,0.0004,120]
[423451289,1780126645000,-1745.757,0.0004,120]
[423451293,1780126645000,-477.12749073,0.0004,30]
[423451292,1780126645000,-1066.90826242,0.0004,120]
[423451295,1780126645000,-370.29551497,0.0004,120]
[423451296,1780126645000,-1146.34497443,0.0004,120]
[423451298,1780126645000,-259.92765799,0.0004,60]
[423451291,1780126645000,-1745.75,0.0004,120]
[423451299,1780126645000,-3060.12405626,0.0004,120]
[423451300,1780126645000,-1341.41971495,0.0004,30]
[423451301,1780126645000,-1599.28580842,0.0004,30]
[423451303,1780126645000,-2848.830709,0.0004,30]
[423451302,1780126645000,-218.60712548,0.0004,30]
[423451304,1780126645000,-2948.94913333,0.0004,120]
[423451305,1780126645000,-1105.66872163,0.0004,120]
[423451306,1780126645000,-322.79093308,0.0004,30]
[423451308,1780126645000,-1038.09230474,0.0004,120]
[423451307,1780126645000,-183.68105486,0.0004,40]
[423451297,1780126645000,-4242.10652025,0.0004,30]
[423451310,1780126646000,-218.00970413,0.0004,120]
[423451311,1780126646000,-233.5359097,0.0004,30]
[423451309,1780126646000,-2855.02781052,0.0004,120]
[423451314,1780126646000,-2882.56682316,0.0004,120]
[423451312,1780126646000,-3170.53708571,0.0004,30]
[423451315,1780126646000,-202.80210842,0.0004,120]
[423451316,1780126646000,-1118.59906305,0.0004,120]
[423451317,1780126646000,-1020.28320767,0.0004,120]
[423451318,1780126646000,-480.75695728,0.0004,120]
[423451319,1780126646000,-337.97652221,0.0004,120]
[423451313,1780126646000,-669.01250153,0.0004,120]
[423451346,1780126647000,-610.99985703,0.0004,120]
[423451347,1780126647000,-1393.15504839,0.0004,120]
[423451345,1780126647000,-473.15651077,0.0004,120]
[423451344,1780126647000,-643.48388133,0.0004,120]
[423451343,1780126647000,-1678.74037215,0.0004,120]
[423451340,1780126647000,-1093.51705586,0.0004,60]
[423451350,1780126647000,-356.56,0.0004,120]
[423451341,1780126647000,-1192.06156467,0.0004,30]
[423451339,1780126647000,-1923.54540247,0.0004,30]
[423451338,1780126647000,-2309.95435995,0.0004,120]
[423451337,1780126647000,-476.41795981,0.0004,120]
[423451342,1780126647000,-835.17029138,0.0004,30]
[423451348,1780126647000,-500.507009,0.0004,120]
[423451359,1780126647000,-1000.0,0.0004,120]
[423451351,1780126647000,-795.0,0.0004,120]
[423451363,1780126647000,-1000.0,0.0004,120]
[423451364,1780126647000,-1000.0,0.0004,120]
[423451362,1780126647000,-1000.0,0.0004,120]
[423451360,1780126647000,-1000.0,0.0004,120]
[423451361,1780126647000,-1000.0,0.0004,120]
[423451357,1780126647000,-1000.0,0.0004,120]
[423451349,1780126647000,-180.5271335,0.0004,120]
[423451356,1780126647000,-2500.0,0.0004,120]
[423451355,1780126647000,-2900.0,0.0004,120]
[423451354,1780126647000,-350.0,0.0004,30]
[423451352,1780126647000,-468.0,0.0004,120]
[423451353,1780126647000,-2400.0,0.0004,120]
[423451358,1780126647000,-1000.0,0.0004,120]
[423451377,1780126648000,-18621.0,0.0004,120]
[423451375,1780126648000,-2000.0,0.0004,120]
[423451373,1780126648000,-162.0,0.0004,120]
[423451374,1780126648000,-392.72,0.0004,120]
[423451371,1780126648000,-1000.0,0.0004,120]
[423451368,1780126648000,-1000.0,0.0004,120]
[423451369,1780126648000,-1000.0,0.0004,120]
[423451366,1780126648000,-1000.0,0.0004,120]
[423451367,1780126648000,-1000.0,0.0004,120]
[423451365,1780126648000,-1000.0,0.0004,120]
[423451376,1780126648000,-1221.03310086,0.0004,30]
[423451372,1780126648000,-2007.53,0.0004,120]
[423451378,1780126648000,-4963.21,0.0004,120]
[423451370,1780126648000,-1000.0,0.0004,120]
[423451380,1780126648000,-4471.75041929,0.0004,120]
[423451379,1780126648000,-200.0,0.0004,120]
[423451390,1780126648000,-2000.0,0.0004,120]
[423451389,1780126648000,-154.13614887,0.0004,120]
[423451388,1780126648000,-167.84556398,0.0004,120]
[423451385,1780126648000,-1634.15424991,0.0004,120]
[423451392,1780126648000,-1376.89995588,0.0004,120]
[423451391,1780126648000,-51509.22151831,0.0004,120]
[423451386,1780126648000,-921.92894305,0.0004,120]
[423451384,1780126648000,-1047.48591528,0.0004,30]
[423451383,1780126648000,-3417.06619014,0.0004,120]
[423451382,1780126648000,-2483.92,0.0004,120]
[423451381,1780126648000,-2465.38569138,0.0004,120]
[423451387,1780126648000,-18724.40891088,0.0004,120]
[423451401,1780126649000,-2030.0,0.0004,120]
[423451394,1780126649000,-5000.0,0.0004,90]
[423451393,1780126649000,-200.52,0.0004,30]
[423451395,1780126649000,-5000.0,0.0004,90]
[423451396,1780126649000,-5000.0,0.0004,90]
[423451397,1780126649000,-4212.029118,0.0004,90]
[423451398,1780126649000,-234.56571322,0.0004,120]
[423451399,1780126649000,-551.0,0.0004,120]
[423451400,1780126649000,-1267.0436947,0.0004,120]
[423451402,1780126649000,-175.55997114,0.0004,120]
[423451406,1780126649000,-150.0,0.0004,120]
[423451404,1780126649000,-3360.0,0.0004,120]
[423451405,1780126649000,-250.0,0.0004,120]
[423451408,1780126649000,-2000.0,0.0004,120]
[423451407,1780126649000,-1045.0,0.0004,120]
[423451409,1780126649000,-8509.0338159,0.0004,120]
[423451410,1780126649000,-808.6648986,0.0004,120]
[423451411,1780126649000,-199.48,0.0004,120]
[423451413,1780126649000,-150.0,0.0004,120]
[423451412,1780126649000,-209.12966642,0.0004,120]
[423451403,1780126649000,-2000.0,0.0004,90]
[423451420,1780126650000,-500.0,0.0004,120]
[423451419,1780126650000,-321.34,0.0004,120]
[423451418,1780126650000,-1080.0,0.0004,120]
[423451421,1780126650000,-500.0,0.0004,120]
[423451416,1780126650000,-647.13,0.0004,120]
[423451415,1780126650000,-200.0,0.0004,120]
[423451414,1780126650000,-200.0,0.0004,120]
[423451417,1780126650000,-3266.478637,0.0004,56]
[423451422,1780126650000,-500.0,0.0004,120]
[423451423,1780126650000,-500.0,0.0004,120]
[423451424,1780126650000,-500.0,0.0004,120]
[423451427,1780126650000,-500.0,0.0004,120]
[423451425,1780126650000,-500.0,0.0004,120]
[423451426,1780126650000,-500.0,0.0004,120]
[423451428,1780126650000,-500.0,0.0004,120]
[423451429,1780126650000,-500.0,0.0004,120]
[423451430,1780126650000,-500.0,0.0004,120]
[423451431,1780126650000,-500.0,0.0004,120]
[423451432,1780126650000,-500.0,0.0004,120]
[423451441,1780126651000,-530.3,0.0004004,120]
[423451440,1780126651000,-254.66,0.0004004,120]
[423451439,1780126651000,-2684.59,0.0004001,120]
[423451438,1780126651000,-1047.61960593,0.0004,120]
[423451435,1780126651000,-500.0,0.0004,120]
[423451437,1780126651000,-489.91139318,0.0004,120]
[423451434,1780126651000,-500.0,0.0004,120]
[423451433,1780126651000,-500.0,0.0004,120]
[423451443,1780126651000,-400.0,0.00040088,120]
[423451436,1780126651000,-500.0,0.0004,120]
[423451445,1780126651000,-300.0,0.00040088,120]
[423451442,1780126651000,-2000.0,0.00040062,120]
[423451446,1780126651000,-300.0,0.00040088,120]
[423451457,1780126651000,-300.0,0.00040088,120]
[423451444,1780126651000,-400.0,0.00040088,120]
[423451455,1780126651000,-300.0,0.00040088,120]
[423451454,1780126651000,-300.0,0.00040088,120]
[423451452,1780126651000,-300.0,0.00040088,120]
[423451453,1780126651000,-300.0,0.00040088,120]
[423451456,1780126651000,-300.0,0.00040088,120]
[423451450,1780126651000,-174.49413045,0.00040088,120]
[423451449,1780126651000,-300.0,0.00040088,120]
[423451447,1780126651000,-400.0,0.00040088,120]
[423451448,1780126651000,-393.76140958,0.00040088,120]
[423451451,1780126651000,-300.0,0.00040088,120]
[423451468,1780126652000,-400.0,0.00040088,120]
[423451458,1780126652000,-300.0,0.00040088,120]
[423451459,1780126652000,-300.0,0.00040088,120]
[423451460,1780126652000,-300.0,0.00040088,120]
[423451461,1780126652000,-300.0,0.00040088,120]
[423451463,1780126652000,-400.0,0.00040088,120]
[423451462,1780126652000,-428.26905234,0.00040088,120]
[423451464,1780126652000,-400.0,0.00040088,120]
[423451465,1780126652000,-300.0,0.00040088,120]
[423451466,1780126652000,-400.0,0.00040088,120]
[423451467,1780126652000,-300.0,0.00040088,120]
[423451479,1780126652000,-300.0,0.00040088,120]
[423451469,1780126652000,-393.49766711,0.00040088,120]
[423451471,1780126652000,-400.0,0.00040088,120]
[423451480,1780126652000,-300.0,0.00040088,120]
[423451477,1780126652000,-300.0,0.00040088,120]
[423451476,1780126652000,-300.0,0.00040088,120]
[423451478,1780126652000,-300.0,0.00040088,120]
[423451473,1780126652000,-417.08613105,0.00040088,120]
[423451472,1780126652000,-300.0,0.00040088,120]
[423451474,1780126652000,-300.0,0.00040088,120]
[423451470,1780126652000,-300.0,0.00040088,120]
[423451475,1780126652000,-300.0,0.00040088,120]
[423451481,1780126652000,-300.0,0.00040088,120]
[423451490,1780126653000,-223.78112818,0.00040123,120]
[423451493,1780126653000,-200.0,0.00040137,120]
[423451491,1780126653000,-471.31035208,0.00040123,120]
[423451489,1780126653000,-309.4501166,0.00040123,120]
[423451488,1780126653000,-152.98104685,0.00040123,120]
[423451483,1780126653000,-543.94114844,0.00040088,120]
[423451486,1780126653000,-243.0,0.000401,120]
[423451485,1780126653000,-600.0,0.000401,120]
[423451484,1780126653000,-196.76275972,0.00040088,120]
[423451482,1780126653000,-353.98096062,0.00040088,120]
[423451492,1780126653000,-530.3,0.00040137,120]
[423451487,1780126653000,-66988.0,0.0004012,120]
[423451494,1780126653000,-247.33150494,0.0004014,120]
[423451504,1780126653000,-290.87451312,0.0004014,120]
[423451496,1780126653000,-158.22133535,0.0004014,120]
[423451508,1780126653000,-495.00413779,0.0004014,120]
[423451507,1780126653000,-322.43857193,0.0004014,120]
[423451506,1780126653000,-607.92757582,0.0004014,120]
[423451505,1780126653000,-295.04043598,0.0004014,120]
[423451503,1780126653000,-156.13637221,0.0004014,120]
[423451495,1780126653000,-427.10319257,0.0004014,120]
[423451500,1780126653000,-374.70761757,0.0004014,120]
[423451499,1780126653000,-995.3934496,0.0004014,120]
[423451501,1780126653000,-634.97341609,0.0004014,120]
[423451498,1780126653000,-587.22812799,0.0004014,120]
[423451497,1780126653000,-283.30245073,0.0004014,120]
[423451502,1780126653000,-1092.95460553,0.0004014,120]
[423451521,1780126654000,-323.0,0.00040215,30]
[423451517,1780126654000,-2000.0,0.000402,120]
[423451516,1780126654000,-153.0,0.000402,120]
[423451518,1780126654000,-2000.0,0.000402,120]
[423451514,1780126654000,-2204.46,0.0004015,120]
[423451511,1780126654000,-2204.46,0.0004015,120]
[423451513,1780126654000,-2204.46,0.0004015,120]
[423451512,1780126654000,-2204.46,0.0004015,120]
[423451510,1780126654000,-347.56844824,0.00040143,30]
[423451509,1780126654000,-795.16119766,0.0004014,120]
[423451519,1780126654000,-68197.702187,0.000402,120]
[423451515,1780126654000,-2000.0,0.00040183,120]
[423451520,1780126654000,-1749.63566635,0.000402,120]
[423451522,1780126654000,-150.0,0.00040224,120]
[423451523,1780126654000,-150.0,0.0004023,120]
[423451536,1780126654000,-248.48,0.0004033,120]
[423451534,1780126654000,-320.0,0.00040325,74]
[423451533,1780126654000,-2500.0,0.00040305,120]
[423451532,1780126654000,-2000.0,0.00040303,120]
[423451531,1780126654000,-2000.0,0.000403,120]
[423451530,1780126654000,-693.7,0.0004029,60]
[423451535,1780126654000,-1000.0,0.00040328,120]
[423451527,1780126654000,-423.4,0.00040273,120]
[423451529,1780126654000,-25454.18,0.0004029,60]
[423451525,1780126654000,-500.0,0.00040234,60]
[423451526,1780126654000,-500.0,0.00040234,60]
[423451524,1780126654000,-500.0,0.00040234,60]
[423451528,1780126654000,-320.0,0.00040274,73]
[423451547,1780126655000,-2440.0,0.00040345,120]
[423451545,1780126655000,-1401.0,0.00040345,120]
[423451546,1780126655000,-753.0,0.00040345,120]
[423451544,1780126655000,-1170.0,0.00040345,120]
[423451543,1780126655000,-162.0,0.00040341,120]
[423451540,1780126655000,-848.0,0.00040341,120]
[423451541,1780126655000,-873.0,0.00040341,120]
[423451538,1780126655000,-530.3,0.0004033,120]
[423451537,1780126655000,-382.02,0.0004033,120]
[423451548,1780126655000,-2516.0,0.00040345,120]
[423451542,1780126655000,-3265.0,0.00040341,120]
[423451549,1780126655000,-1194.0,0.00040345,120]
[423451539,1780126655000,-3546.0,0.00040341,120]
[423451550,1780126655000,-872.0,0.00040345,120]
[423451551,1780126655000,-330.0,0.00040371,75]
[423451563,1780126655000,-2758.22,0.000404,120]
[423451560,1780126655000,-1379.14,0.000404,60]
[423451561,1780126655000,-2758.227,0.000404,120]
[423451557,1780126655000,-2013.418,0.000404,60]
[423451559,1780126655000,-1379.144,0.000404,60]
[423451562,1780126655000,-2758.227,0.000404,120]
[423451556,1780126655000,-2013.418,0.000404,60]
[423451555,1780126655000,-471.31035208,0.00040397,120]
[423451553,1780126655000,-309.4501166,0.00040397,120]
[423451554,1780126655000,-223.78112818,0.00040397,120]
[423451552,1780126655000,-152.98104685,0.00040397,120]
[423451558,1780126655000,-2013.41,0.000404,60]
[423451571,1780126656000,-247.33150494,0.00040414,120]
[423451564,1780126656000,-2452.595,0.000404,30]
[423451567,1780126656000,-1289.675,0.000404,120]
[423451566,1780126656000,-2452.59,0.000404,30]
[423451565,1780126656000,-2452.595,0.000404,30]
[423451568,1780126656000,-1289.67,0.000404,60]
[423451569,1780126656000,-221.06,0.000404,51]
[423451570,1780126656000,-1467.71076691,0.000404,30]
[423451572,1780126656000,-427.10319257,0.00040414,120]
[423451576,1780126656000,-374.70761757,0.00040414,120]
[423451573,1780126656000,-283.30245073,0.00040414,120]
[423451574,1780126656000,-587.22812799,0.00040414,120]
[423451577,1780126656000,-634.97341609,0.00040414,120]
[423451578,1780126656000,-1092.95460553,0.00040414,120]
[423451579,1780126656000,-156.13637221,0.00040414,120]
[423451580,1780126656000,-290.87451312,0.00040414,120]
[423451581,1780126656000,-295.04043598,0.00040414,120]
[423451582,1780126656000,-607.92757582,0.00040414,120]
[423451575,1780126656000,-995.3934496,0.00040414,120]
[423451588,1780126657000,-150.0,0.00040431,120]
[423451583,1780126657000,-322.43857193,0.00040414,120]
[423451586,1780126657000,-150.0,0.00040419,120]
[423451585,1780126657000,-795.16119766,0.00040414,120]
[423451584,1780126657000,-495.00413779,0.00040414,120]
[423451587,1780126657000,-2000.0,0.00040423,120]
[423451589,1780126657000,-500.0,0.00040462,60]
[423451591,1780126657000,-320.0,0.00040473,76]
[423451592,1780126657000,-1355.84175942,0.00040477,120]
[423451593,1780126657000,-2136.45724185,0.0004049,30]
[423451594,1780126657000,-222.26487827,0.00040492,120]
[423451595,1780126657000,-1000.0,0.00040499,120]
[423451596,1780126657000,-545.42911876,0.000405,120]
[423451597,1780126657000,-944.03055705,0.000405,120]
[423451590,1780126657000,-500.0,0.00040462,60]
[423451598,1780126658000,-279.07019717,0.000405,60]
[423451599,1780126658000,-2400.0,0.000405,120]
[423451600,1780126658000,-2500.0,0.000405,120]
[423451602,1780126658000,-5000.0,0.000405,120]
[423451601,1780126658000,-243.0,0.000405,120]
[423451604,1780126658000,-1855.86,0.000405,120]
[423451605,1780126658000,-200.0,0.000405,50]
[423451603,1780126658000,-2000.0,0.000405,120]
[423451608,1780126658000,-250.0,0.000405,120]
[423451607,1780126658000,-2000.0,0.000405,90]
[423451610,1780126658000,-600.0,0.000405,120]
[423451609,1780126658000,-2140.0,0.000405,120]
[423451611,1780126658000,-526.57,0.000405,31]
[423451612,1780126658000,-511.6543645,0.000405,120]
[423451613,1780126658000,-206.79450401,0.00040501,120]
[423451606,1780126658000,-1000.0,0.000405,120]